bitfinex/quotes_SOLUSD_20251223
["timestamp","ask_amount","ask_price","bid_price","bid_amount"]
[1766505607610,13.06021454,123.39,123.36,0.7]
[1766505608146,1.91254158,123.38,123.35,0.65]
[1766505608348,10.43767296,123.39,123.35,10.01952349]
[1766505608648,12.35021454,123.39,123.36,0.65]
[1766505609137,21.16469213,123.39,123.36,0.65]
[1766505609338,1.91254158,123.38,123.36,0.65]
[1766505609541,1.91254158,123.38,123.35,0.65]
[1766505609711,2.62254158,123.36,123.32,0.65]
[1766505609911,1.91254158,123.35,123.32,0.65]
[1766505610307,1.91254158,123.33,123.31,0.2]
[1766505610511,1.91254158,123.32,123.31,0.2]
[1766505611010,2.62254158,123.33,123.31,0.2]
[1766505611326,1.91254158,123.33,123.31,0.85]
[1766505611527,1.91254158,123.33,123.31,0.2]
[1766505611736,1.91254158,123.32,123.31,0.2]
[1766505612520,2.62254158,123.32,123.28,0.85]
[1766505612731,1.91254158,123.3,123.28,0.2]
[1766505614017,10.02285314,123.3,123.28,0.2]
[1766505614220,8.81973124,123.31,123.28,0.2]
[1766505614422,1.91254158,123.3,123.28,0.2]
[1766505614645,2.62254158,123.3,123.28,0.2]
[1766505615547,2.62254158,123.29,123.26,0.2]
[1766505615718,1.91254158,123.28,123.26,0.2]
[1766505616311,35.78174887,123.33,123.27,0.65]
[1766505616517,10.43767296,123.3,123.28,0.65]
[1766505616726,12.35021454,123.3,123.27,0.65]
[1766505617055,12.35021454,123.3,123.26,0.2]
[1766505617056,1.91254158,123.29,123.26,0.2]
[1766505617239,1.91254158,123.29,123.26,0.85]
[1766505617445,2.62254158,123.29,123.26,0.85]
[1766505617734,1.91254158,123.27,123.23,0.65]
[1766505617951,1.91254158,123.26,123.23,0.65]
[1766505618246,8.82229218,123.27,123.23,0.65]
[1766505618423,1.91254158,123.26,123.23,0.65]
[1766505618621,10.73483376,123.27,123.23,0.65]
[1766505618952,1.91254158,123.26,123.23,0.65]
[1766505620016,8.82229218,123.27,123.23,0.65]
[1766505620317,10.73483376,123.27,123.23,0.65]
[1766505621250,18.54926235,123.29,123.23,1.91254158]
[1766505621548,12.35021454,123.28,123.25,0.65]
[1766505621712,13.06021454,123.28,123.25,0.65]
[1766505622445,11.14767296,123.28,123.25,0.65]
[1766505622646,13.06021454,123.28,123.24,1.91254158]
[1766505622944,1.91254158,123.27,123.24,0.65]
[1766505623147,1.91254158,123.26,123.23,0.65]
[1766505623311,8.11137539,123.29,123.26,0.65]
[1766505623514,1.91254158,123.28,123.25,0.65]
[1766505623728,2.62254158,123.28,123.25,0.65]
[1766505624821,0.71,123.28,123.25,0.65]
[1766505625020,1.91254158,123.27,123.23,10.02725013]
[1766505625219,1.91254158,123.27,123.24,0.65]
[1766505625546,8.11071069,123.3,123.27,0.65]
[1766505625842,0.71,123.29,123.26,0.65]
[1766505626643,10.73350736,123.29,123.26,0.65]
[1766505627141,1.91254158,123.28,123.26,0.65]
[1766505627350,1.91254158,123.28,123.25,0.65]
[1766505627643,2.62254158,123.27,123.23,0.65]
[1766505628139,1.91254158,123.26,123.23,0.65]
[1766505628458,1.91254158,123.26,123.2,18.75429425]
[1766505628459,10.73559311,123.26,123.2,18.75429425]
[1766505628616,1.91254158,123.25,123.22,0.65]
[1766505629316,0.71,123.26,123.22,0.65]
[1766505629516,2.62254158,123.26,123.22,0.65]
[1766505630213,2.62254158,123.26,123.23,0.65]
[1766505630614,10.73548414,123.26,123.23,0.65]
[1766505630813,2.62254158,123.25,123.21,2.56254158]
[1766505631018,2.62254158,123.25,123.22,0.65]
[1766505631226,0.71,123.25,123.22,0.65]
[1766505632045,2.62254158,123.25,123.22,0.65]
[1766505632252,0.71,123.25,123.22,0.65]
[1766505633345,10.73548414,123.26,123.23,0.65]
[1766505634449,10.02646198,123.25,123.21,0.68]
[1766505634768,2.57254158,123.23,123.2,0.88]
[1766505634933,1.91254158,123.22,123.2,0.88]
[1766505635332,0.66,123.23,123.2,0.88]
[1766505635539,1.91254158,123.22,123.2,0.88]
[1766505636736,1.91254158,123.22,123.2,0.2]
[1766505638134,8.77535836,123.23,123.2,0.2]
[1766505638479,10.02789994,123.23,123.2,0.88]
[1766505638637,10.74789994,123.23,123.2,0.88]
[1766505639560,8.83535836,123.23,123.2,0.88]
[1766505639762,10.74789994,123.23,123.2,0.88]
[1766505640349,10.74789994,123.23,123.2,0.2]
[1766505640862,8.83367158,123.25,123.21,0.68]
[1766505641031,10.74621316,123.25,123.22,0.68]
[1766505641238,2.63254158,123.27,123.23,2.59254158]
[1766505641439,13.07021454,123.27,123.23,2.59254158]
[1766505641634,0.72,123.27,123.24,1.91254158]
[1766505641941,10.02341073,123.3,123.26,2.59254158]
[1766505642137,0.72,123.29,123.26,2.59254158]
[1766505642753,0.72,123.29,123.25,2.59254158]
[1766505643262,10.74367294,123.29,123.25,2.59254158]
[1766505643663,10.74367294,123.29,123.25,0.68]
[1766505643844,10.74367294,123.29,123.25,2.59254158]
[1766505644456,0.72,123.28,123.22,0.68]
[1766505644650,2.63254158,123.27,123.23,0.68]
[1766505644851,28.38852612,123.29,123.22,1.91254158]
[1766505644852,0.72,123.26,123.22,1.91254158]
[1766505645063,0.72,123.26,123.23,0.68]
[1766505646152,8.11286014,123.27,123.23,2.59254158]
[1766505646359,10.74439443,123.28,123.24,2.59254158]
[1766505646743,0.72,123.27,123.24,2.59254158]
[1766505646965,0.72,123.27,123.24,0.68]
[1766505647370,8.83229579,123.27,123.24,0.68]
[1766505647670,0.72,123.26,123.22,1.91254158]
[1766505647875,0.72,123.26,123.23,2.59254158]
[1766505648077,0.72,123.26,123.23,0.68]
[1766505648752,20.46251033,123.27,123.2,10.22895153]
[1766505648753,1.91254158,123.25,123.2,0.88]
[1766505648950,2.63254158,123.23,123.2,0.88]
[1766505649165,2.63254158,123.24,123.2,0.88]
[1766505649474,10.74696038,123.24,123.2,0.88]
[1766505650047,0.72,123.23,123.2,0.88]
[1766505650244,1.91254158,123.22,123.2,0.2]
[1766505650450,2.63254158,123.22,123.2,0.2]
[1766505650662,1.91254158,123.21,123.2,0.2]
[1766505650850,2.63254158,123.22,123.2,0.2]
[1766505651052,2.63254158,123.21,123.2,1e-08]
[1766505651353,10.74876591,123.21,123.2,1e-08]
[1766505651550,2.63254158,123.21,123.2,1e-08]
[1766505651859,10.74839802,123.22,123.2,1e-08]
[1766505652058,11.8364591,123.22,123.2,1e-08]
[1766505652545,3.72060266,123.21,123.2,1e-08]
[1766505654249,22.27449995,123.21,123.2,1e-08]
[1766505654773,0.72,123.2,123.17,0.2]
[1766505655073,0.72,123.18,123.16,0.2]
[1766505655655,3.72060266,123.19,123.16,0.2]
[1766505656470,11.83828524,123.19,123.16,0.2]
[1766505657374,10.43767296,123.2,123.17,0.68]
[1766505657676,13.43827562,123.2,123.17,0.68]
[1766505657877,13.43827562,123.2,123.16,3.20060266]
[1766505658176,14.15827562,123.2,123.16,0.88]
[1766505658757,22.27564783,123.2,123.16,0.88]
[1766505659373,3.00060266,123.19,123.16,0.88]
[1766505659575,0.72,123.18,123.16,0.2]
[1766505659974,0.72,123.17,123.16,0.2]
[1766505660274,3.72060266,123.19,123.16,0.2]
[1766505660477,0.72,123.19,123.16,3.88060266]
[1766505660778,11.83952284,123.17,123.15,0.2]
[1766505660993,3.72060266,123.17,123.15,0.2]
[1766505661185,0.72,123.17,123.15,0.2]
[1766505661478,8.1184186,123.18,123.15,0.88]
[1766505661979,11.83902126,123.18,123.15,0.88]
[1766505662182,11.83902126,123.18,123.15,0.2]
[1766505662678,0.72,123.17,123.15,0.2]
[1766505663961,8.8384186,123.18,123.15,0.2]
[1766505664263,11.83902126,123.18,123.15,0.2]
[1766505664467,0.72,123.17,123.15,0.2]
[1766505665073,11.83902126,123.18,123.15,0.2]
[1766505665279,11.15767296,123.2,123.16,3.68060266]
[1766505665675,10.43767296,123.2,123.16,3.68060266]
[1766505665990,0.72,123.19,123.16,3.68060266]
[1766505666286,0.72,123.19,123.16,0.68]
[1766505666477,8.83756647,123.19,123.16,0.68]
[1766505666879,0.72,123.19,123.16,0.68]
[1766505667288,8.83761662,123.19,123.16,0.68]
[1766505667886,11.11821928,123.19,123.15,3.20060266]
[1766505668063,0.7,123.16,123.15,0.06]
[1766505668265,8.11761662,123.19,123.15,0.06]
[1766505668266,3.60060266,123.17,123.15,0.06]
[1766505668482,11.71946363,123.17,123.15,0.06]
[1766505670187,3.00060266,123.16,123.15,0.06]
[1766505672276,8.71886097,123.17,123.15,0.06]
[1766505672475,11.71946363,123.17,123.15,0.06]
[1766505672880,3.00060266,123.16,123.15,0.06]
[1766505673080,3.60060266,123.16,123.14,0.2]
[1766505673501,3.60060266,123.16,123.13,0.87]
[1766505673502,3.00060266,123.15,123.13,0.87]
[1766505674080,3.60060266,123.16,123.13,0.87]
[1766505674287,11.12066982,123.16,123.13,0.87]
[1766505675090,11.66066982,123.16,123.13,0.87]
[1766505675389,8.66006716,123.16,123.13,0.2]
[1766505675596,3.54060266,123.15,123.13,0.2]
[1766505676194,11.66112932,123.15,123.13,0.2]
[1766505677103,11.12112932,123.15,123.13,0.2]
[1766505678398,3.34060266,123.14,123.1,0.87]
[1766505678607,3.00060266,123.12,123.1,0.87]
[1766505678811,3.00060266,123.12,123.09,0.2]
[1766505678812,10.77767296,123.12,123.09,0.2]
[1766505679113,3.00060266,123.1,123.09,0.2]
[1766505679511,3.00060266,123.1,123.08,0.67]
[1766505680496,3.34060266,123.09,123.07,0.2]
[1766505680701,3.00060266,123.08,123.07,0.2]
[1766505681284,8.12393292,123.1,123.07,0.2]
[1766505681500,11.12453558,123.1,123.08,0.67]
[1766505683978,0.34,123.09,123.07,0.2]
[1766505684182,8.12393292,123.1,123.07,0.2]
[1766505684382,8.12393292,123.1,123.07,0.87]
[1766505685208,11.12453558,123.1,123.07,0.87]
[1766505685613,8.1229468,123.11,123.09,0.67]
[1766505686316,8.1229468,123.11,123.08,3.00060266]
[1766505686487,8.1229468,123.11,123.08,3.67060266]
[1766505687214,10.43767296,123.12,123.1,0.67]
[1766505687415,8.12109017,123.14,123.11,3.67060266]
[1766505687592,33.39802596,123.15,123.12,3.67060266]
[1766505687795,33.73802596,123.15,123.11,3.67060266]
[1766505688298,8.11975363,123.16,123.13,3.67060266]
[1766505688685,8.11975363,123.16,123.14,3.67060266]
[1766505688892,8.11975363,123.16,123.14,0.67]
[1766505689105,8.11975363,123.16,123.13,0.67]
[1766505689301,8.11975363,123.16,123.13,3.67060266]
[1766505690516,8.11975363,123.16,123.13,0.67]
[1766505691090,8.11975363,123.16,123.13,3.67060266]
[1766505691289,8.11975363,123.16,123.13,0.67]
[1766505691787,11.12035629,123.16,123.1,8.12336924]
[1766505691987,11.46035629,123.16,123.12,0.67]
[1766505692213,3.34060266,123.13,123.08,3.67060266]
[1766505692393,0.34,123.13,123.09,0.67]
[1766505692596,3.34060266,123.13,123.09,3.67060266]
[1766505693117,13.77827562,123.13,123.09,0.67]
[1766505693411,10.77767296,123.13,123.09,0.67]
[1766505693619,3.00060266,123.12,123.09,0.67]
[1766505693823,11.12316018,123.12,123.09,0.67]
[1766505697017,28.76795063,123.12,123.07,0.91]
[1766505697220,10.43767296,123.09,123.07,0.91]
[1766505697720,3.00060266,123.1,123.07,0.91]
[1766505698212,13.43827562,123.11,123.07,0.91]
[1766505699122,11.1240795,123.1,123.07,0.91]
[1766505699603,3.00060266,123.09,123.04,3.00060266]
[1766505699807,3.00060266,123.09,123.06,0.71]
[1766505700114,31.43277162,123.1,123.06,0.71]
[1766505700425,3.00060266,123.09,123.06,0.71]
[1766505701127,11.12512957,123.09,123.06,0.71]
[1766505701899,8.12452691,123.09,123.06,0.71]
[1766505702211,8.12452691,123.09,123.07,0.71]
[1766505704125,31.43277162,123.1,123.07,0.71]
[1766505704311,28.77216896,123.1,123.07,0.71]
[1766505704503,31.77277162,123.1,123.07,0.71]
[1766505704700,8.12347684,123.1,123.07,3.00060266]
[1766505704900,8.12347684,123.1,123.07,3.71060266]
[1766505706123,10.43767296,123.11,123.09,0.71]
[1766505706432,8.12264092,123.12,123.1,0.71]
[1766505706621,8.12181321,123.13,123.1,0.71]
[1766505706919,11.77241587,123.13,123.09,3.00060266]
[1766505707123,32.07615988,123.13,123.09,3.00060266]
[1766505707628,29.07555722,123.13,123.09,3.00060266]
[1766505707813,8.77181321,123.13,123.09,3.00060266]
[1766505708310,8.12181321,123.13,123.1,3.00060266]
[1766505709017,8.12181321,123.13,123.11,3.71060266]
[1766505709220,8.12181321,123.13,123.11,3.00060266]
[1766505709418,18.55864065,123.14,123.11,3.00060266]
[1766505709612,8.12096769,123.14,123.11,3.00060266]
[1766505710624,8.77017864,123.15,123.11,3.00060266]
[1766505710826,8.77017864,123.15,123.1,3.00060266]
[1766505711001,11.7707813,123.15,123.1,3.00060266]
[1766505711204,11.7707813,123.15,123.11,0.71]
[1766505711926,10.69269008,123.15,123.11,0.71]
[1766505712430,0.65,123.14,123.11,0.71]
[1766505712828,8.12102164,123.14,123.11,2.63251144]
[1766505713210,8.12102164,123.14,123.11,1.92251144]
[1766505713419,8.12102164,123.14,123.11,2.63251144]
[1766505713621,10.43767296,123.16,123.13,1.92251144]
[1766505713809,20.29654587,123.18,123.15,1.92251144]
[1766505713810,18.55636652,123.18,123.15,1.92251144]
[1766505714132,8.76777091,123.19,123.16,2.63251144]
[1766505714504,8.76622433,123.21,123.18,0.71]
[1766505714709,0.65,123.21,123.18,2.63251144]
[1766505714908,23.60567693,123.22,123.18,2.63251144]
[1766505715428,14.84,123.22,123.19,2.63251144]
[1766505715736,2.57251144,123.24,123.19,2.63251144]
[1766505715932,0.65,123.24,123.2,0.71]
[1766505716236,2.57251144,123.24,123.19,1.92251144]
[1766505716437,2.57251144,123.24,123.2,0.71]
[1766505716620,0.65,123.24,123.2,2.63251144]
[1766505716817,0.65,123.2,123.15,0.71]
[1766505717027,2.57251144,123.19,123.15,0.71]
[1766505717835,1.92251144,123.18,123.15,0.71]
[1766505718039,5.45409692,123.17,123.12,0.71]
[1766505718333,5.45409692,123.17,123.13,0.71]
[1766505718544,5.45409692,123.16,123.12,0.71]
[1766505718736,10.43767296,123.18,123.11,0.71]
[1766505718737,5.45409692,123.15,123.11,0.71]
[1766505718913,13.57450361,123.15,123.11,0.71]
[1766505719940,8.77040669,123.15,123.11,0.71]
[1766505720324,0.65,123.15,123.11,5.51409692]
[1766505720641,8.11974958,123.16,123.12,0.71]
[1766505720831,10.43767296,123.16,123.13,0.71]
[1766505721019,15.89176988,123.16,123.13,0.71]
[1766505721221,15.89176988,123.16,123.11,5.51409692]
[1766505721944,15.89176988,123.16,123.11,4.80409692]
[1766505722244,15.89176988,123.16,123.12,0.71]
[1766505722541,4.80409692,123.14,123.09,14.82]
[1766505722743,5.45409692,123.13,123.09,14.82]
[1766505722913,4.80409692,123.11,123.03,8.32761689]
[1766505723117,38.85636911,123.16,123.03,8.32761689]
[1766505723118,4.80409692,123.1,123.05,4.80409692]
[1766505723564,5.45409692,123.11,123.06,4.80409692]
[1766505724641,8.12215724,123.12,123.08,5.23409692]
[1766505724846,18.55933872,123.13,123.1,4.80409692]
[1766505725051,18.55933872,123.13,123.11,4.80409692]
[1766505725052,8.12166576,123.13,123.11,4.80409692]
[1766505725232,8.12166576,123.13,123.1,0.43]
[1766505725548,8.77111018,123.14,123.11,4.80409692]
[1766505725754,8.12111018,123.14,123.11,4.80409692]
[1766505726146,8.12111018,123.14,123.1,5.23409692]
[1766505726963,13.6252071,123.14,123.1,0.43]
[1766505729550,33.22730227,123.14,123.06,11.25028469]
[1766505729856,5.50409692,123.13,123.08,5.23409692]
[1766505730150,33.22730227,123.14,123.09,4.80409692]
[1766505730354,28.42320535,123.14,123.1,0.43]
[1766505730660,8.12111018,123.14,123.1,4.80409692]
[1766505730863,8.12111018,123.14,123.11,0.43]
[1766505732036,8.12111018,123.14,123.11,5.23409692]
[1766505732236,35.54136354,123.16,123.11,5.23409692]
[1766505732454,8.1203066,123.15,123.12,0.43]
[1766505733330,8.1203066,123.15,123.12,5.23409692]
[1766505733530,8.1203066,123.15,123.12,0.43]
[1766505733753,8.1203066,123.15,123.12,4.80409692]
[1766505734261,8.1203066,123.15,123.11,4.80409692]
[1766505734441,8.8203066,123.15,123.1,4.80409692]
[1766505735662,8.81973481,123.16,123.12,4.80409692]
[1766505736082,8.81913552,123.17,123.13,4.80409692]
[1766505736252,8.11913552,123.17,123.13,4.80409692]
[1766505736764,8.81913552,123.17,123.13,4.80409692]
[1766505736967,0.7,123.17,123.13,4.80409692]
[1766505737136,0.7,123.19,123.14,4.80409692]
[1766505737336,10.43767296,123.19,123.15,19.64409692]
[1766505737666,18.55521985,123.19,123.15,19.64409692]
[1766505738353,8.81670291,123.21,123.17,4.80409692]
[1766505739245,8.81670291,123.21,123.15,22.95998603]
[1766505739540,8.81670291,123.21,123.17,4.80409692]
[1766505741137,0.7,123.23,123.18,4.80409692]
[1766505741334,0.7,123.22,123.18,4.80409692]
[1766505741966,8.8155947,123.22,123.18,4.80409692]
[1766505742138,0.7,123.22,123.18,4.80409692]
[1766505742864,10.43767296,123.24,123.2,4.80409692]
[1766505743164,11.13767296,123.24,123.2,4.80409692]
[1766505744050,19.25204849,123.24,123.2,4.80409692]
[1766505744560,8.11375163,123.25,123.21,4.80409692]
[1766505744762,0.9,123.28,123.23,4.80409692]
[1766505744948,0.7,123.27,123.23,4.80409692]
[1766505745137,0.7,123.27,123.24,4.80409692]
[1766505745338,0.2,123.28,123.25,4.80409692]
[1766505745551,0.9,123.28,123.25,4.80409692]
[1766505747969,0.2,123.28,123.25,4.80409692]
[1766505748464,0.2,123.28,123.26,4.80409692]
[1766505750263,0.2,123.28,123.21,31.53886232]
[1766505750264,0.7,123.27,123.21,31.53886232]
[1766505750470,0.2,123.28,123.24,19.62409692]
[1766505750689,0.2,123.28,123.26,4.80409692]
[1766505753282,0.2,123.28,123.25,8.11328019]
[1766505753466,0.2,123.28,123.26,4.80409692]
[1766505754159,0.2,123.28,123.27,4.80409692]
[1766505754671,0.86,123.28,123.27,14.82]
[1766505754842,0.2,123.28,123.27,14.82]
[1766505756368,0.2,123.28,123.27,16.73738227]
[1766505757667,0.88,123.28,123.24,10.43767296]
[1766505757857,0.88,123.28,123.22,20.28829533]
[1766505757858,0.88,123.28,123.25,14.82]
[1766505758060,2.79738227,123.28,123.25,14.82]
[1766505758247,0.88,123.28,123.25,14.82]
[1766505759672,0.2,123.28,123.26,1.91738227]
[1766505759973,0.2,123.28,123.26,4.79369259]
[1766505760673,0.2,123.28,123.25,22.93352101]
[1766505760972,0.2,123.28,123.26,4.79369259]
[1766505762081,0.2,123.28,123.25,22.93352101]
[1766505762284,0.2,123.28,123.25,27.7272136]
[1766505762457,0.2,123.28,123.27,4.79369259]
[1766505764473,0.2,123.28,123.27,12.90596646]
[1766505767078,0.1,123.3,123.27,13.71719384]
[1766505767277,15.23136555,123.34,123.29,4.79369259]
[1766505767278,0.68,123.32,123.29,4.79369259]
[1766505767484,0.68,123.32,123.3,14.82]
[1766505767788,0.68,123.34,123.31,4.79369259]
[1766505768490,0.68,123.34,123.3,19.61369259]
[1766505768878,0.68,123.34,123.3,27.72385917]
[1766505769083,0.68,123.34,123.31,4.79369259]
[1766505770972,0.68,123.34,123.31,12.90309852]
[1766505771883,0.68,123.34,123.32,4.79369259]
[1766505772068,0.68,123.34,123.31,8.10940593]
[1766505772069,0.68,123.36,123.33,4.79369259]
[1766505772681,0.68,123.36,123.31,28.38351184]
[1766505772983,0.68,123.36,123.32,4.79369259]
[1766505773277,0.68,123.36,123.33,4.79369259]
[1766505774182,0.68,123.38,123.35,7.78069395]
[1766505774394,0.68,123.4,123.36,14.8]
[1766505774586,1e-08,123.41,123.39,7.78069395]
[1766505774761,1e-08,123.41,123.4,7.78069395]
[1766505774964,0.1,123.48,123.4,7.78069395]
[1766505775171,0.68,123.47,123.41,14.8]
[1766505775374,0.68,123.47,123.44,7.78069395]
[1766505775689,0.68,123.46,123.42,0.81024145]
[1766505775889,0.68,123.45,123.43,14.8]
[1766505776889,0.68,123.45,123.4,15.88423325]
[1766505777059,0.68,123.45,123.4,7.78069395]
[1766505777060,0.68,123.44,123.4,7.78069395]
[1766505777260,0.68,123.44,123.4,14.8]
[1766505777491,0.68,123.41,123.37,10.43767296]
[1766505777663,0.68,123.41,123.39,14.8]
[1766505779064,7.78069395,123.44,123.39,22.90432226]
[1766505779262,0.68,123.43,123.39,14.8]
[1766505779467,8.46069395,123.41,123.39,14.8]
[1766505779667,0.68,123.41,123.39,14.8]
[1766505779895,0.68,123.41,123.38,14.8]
[1766505780470,0.68,123.43,123.38,23.29069395]
[1766505780676,0.68,123.43,123.39,8.49069395]
[1766505780994,0.68,123.43,123.39,16.59497266]
[1766505781494,0.68,123.45,123.4,31.394396]
[1766505781788,0.68,123.44,123.4,31.394396]
[1766505782199,7.88069395,123.48,123.43,7.78069395]
[1766505782486,0.78,123.48,123.44,8.49069395]
[1766505782669,0.78,123.48,123.45,22.58069395]
[1766505783089,0.78,123.48,123.45,14.8]
[1766505783288,15.97946496,123.48,123.45,14.8]
[1766505783614,0.68,123.45,123.43,14.8]
[1766505784268,0.68,123.47,123.43,22.58069395]
[1766505784483,0.68,123.47,123.44,7.78069395]
[1766505784894,0.68,123.47,123.43,23.29069395]
[1766505785408,0.68,123.47,123.43,15.51]
[1766505785572,0.68,123.47,123.43,22.58069395]
[1766505786398,0.68,123.47,123.43,30.68243729]
[1766505786903,0.1,123.48,123.46,7.78069395]
[1766505787393,0.1,123.48,123.45,0.65]
[1766505787598,0.1,123.48,123.46,7.78069395]
[1766505788276,0.1,123.48,123.47,7.78069395]
[1766505788691,8.59069395,123.48,123.44,8.10086719]
[1766505788996,0.1,123.48,123.46,7.78069395]
[1766505789183,0.1,123.48,123.47,7.78069395]
[1766505789588,0.1,123.48,123.46,0.65]
[1766505789790,0.1,123.48,123.46,7.78069395]
[1766505790597,0.71,123.49,123.46,7.78069395]
[1766505790598,5.32994037,123.51,123.47,7.78069395]
[1766505790799,5.32994037,123.51,123.48,7.78069395]
[1766505791098,4.61994037,123.51,123.47,8.71878997]
[1766505791298,4.61994037,123.51,123.49,7.78069395]
[1766505792197,4.61994037,123.51,123.5,14.8]
[1766505792584,5.32994037,123.51,123.5,14.8]
[1766505792789,0.71,123.5,123.49,14.8]
[1766505792986,0.71,123.5,123.47,7.78069395]
[1766505793190,4.61994037,123.51,123.48,23.20069395]
[1766505793587,0.71,123.5,123.48,22.58069395]
[1766505793792,4.61994037,123.51,123.48,22.58069395]
[1766505793989,5.32994037,123.51,123.48,22.58069395]
[1766505794185,0.1,123.53,123.5,8.40069395]
[1766505794385,0.1,123.53,123.5,0.62]
[1766505794702,0.1,123.53,123.52,7.78069395]
[1766505794879,0.81,123.57,123.54,7.78069395]
[1766505795081,0.81,123.57,123.54,14.8]
[1766505795406,0.1,123.59,123.54,14.8]
[1766505795407,0.81,123.59,123.56,7.78069395]
[1766505795720,0.1,123.59,123.58,7.78069395]
[1766505796215,0.1,123.59,123.56,8.71307936]
[1766505796216,0.1,123.59,123.56,8.71318823]
[1766505796399,0.1,123.59,123.58,7.78069395]
[1766505796597,0.1,123.59,123.56,8.71318823]
[1766505796801,0.1,123.59,123.58,7.78069395]
[1766505796981,0.81,123.59,123.56,14.78]
[1766505797182,0.71,123.58,123.54,0.62]
[1766505797384,7.78069395,123.57,123.52,7.78069395]
[1766505797602,7.78069395,123.57,123.51,0.62]
[1766505797603,0.71,123.55,123.53,14.3]
[1766505797807,7.78069395,123.54,123.51,14.78]
[1766505798004,28.3263637,123.56,123.5,23.21069395]
[1766505798312,7.90069395,123.55,123.5,23.21069395]
[1766505798484,0.12,123.55,123.5,15.43]
[1766505798811,7.78069395,123.54,123.5,15.43]
[1766505799105,28.3263637,123.56,123.51,8.43069395]
[1766505799411,15.87397251,123.56,123.52,0.65]
[1766505799609,7.78069395,123.55,123.51,0.65]
[1766505799809,8.09327856,123.56,123.51,7.78069395]
[1766505799990,15.87397251,123.56,123.52,8.43069395]
[1766505800489,0.12,123.57,123.52,0.65]
[1766505800689,0.1,123.59,123.55,8.43069395]
[1766505800892,0.1,123.59,123.55,23.21069395]
[1766505801085,0.1,123.59,123.55,14.78]
[1766505801292,0.1,123.59,123.55,0.65]
[1766505801598,8.00069395,123.59,123.55,15.43]
[1766505802412,0.1,123.59,123.55,23.21069395]
[1766505802717,0.1,123.59,123.57,0.65]
[1766505803599,0.1,123.59,123.57,8.43069395]
[1766505804012,0.1,123.59,123.57,14.78]
[1766505804516,7.90069395,123.58,123.54,14.78]
[1766505804822,7.88069395,123.59,123.55,0.65]
[1766505804984,0.1,123.59,123.56,0.65]
[1766505805400,7.88069395,123.59,123.56,0.65]
[1766505805692,7.78069395,123.58,123.54,15.43]
[1766505805894,15.87280237,123.58,123.54,15.43]
[1766505806201,8.09210842,123.58,123.54,0.65]
[1766505806512,8.09210842,123.58,123.52,0.65]
[1766505806513,7.78069395,123.56,123.52,0.65]
[1766505806697,7.78069395,123.55,123.51,14.78]
[1766505807204,7.78069395,123.55,123.52,0.65]
[1766505807384,7.90069395,123.57,123.52,8.43069395]
[1766505807589,8.09210842,123.58,123.53,7.78069395]
[1766505807801,8.09210842,123.58,123.55,0.65]
[1766505807989,0.1,123.59,123.56,8.43069395]
[1766505808709,0.1,123.59,123.57,8.43069395]
[1766505808923,7.78069395,123.58,123.54,15.43]
[1766505809137,8.1915489,123.59,123.54,15.43]
[1766505809138,0.1,123.59,123.56,8.43069395]
[1766505809298,0.1,123.59,123.57,7.78069395]
[1766505809495,0.1,123.59,123.57,8.43069395]
[1766505810214,0.1,123.59,123.57,0.65]
[1766505811591,0.1,123.59,123.57,8.43069395]
[1766505811911,0.1,123.59,123.58,7.78069395]
[1766505812087,8.08873845,123.63,123.58,0.65]
[1766505812294,15.8694324,123.63,123.59,8.43069395]
[1766505812604,8.08873845,123.63,123.59,7.78069395]
[1766505812810,4.54671633,123.69,123.63,0.65]
[1766505812996,8.30538163,123.68,123.63,8.43069395]